fUSD/lending_fUSD_20260608
["ID","MTS","AMOUNT","RATE_DAILY","PERIOD"]
[424411236,1780851041000,-500.0,0.00013698,2]
[424411235,1780851041000,-500.0,0.00013698,2]
[424411234,1780851041000,-500.0,0.00013698,2]
[424411237,1780851041000,-500.0,0.00013698,2]
[424411213,1780851041000,-345.794869,0.00013491,2]
[424411223,1780851041000,-500.0,0.00013698,2]
[424411210,1780851041000,-500.0,0.00013472,2]
[424411169,1780851041000,-500.0,0.00013151,2]
[424411205,1780851041000,-278.156515,0.00013424,2]
[424411239,1780851041000,-500.0,0.00013698,2]
[424411171,1780851041000,-500.0,0.00013151,2]
[424411167,1780851041000,-500.0,0.00013151,2]
[424411172,1780851041000,-1035.0,0.00013151,2]
[424411182,1780851041000,-500.0,0.00013151,2]
[424411174,1780851041000,-500.0,0.00013151,2]
[424411178,1780851041000,-500.0,0.00013151,2]
[424411176,1780851041000,-150.0,0.00013151,2]
[424411180,1780851041000,-150.0,0.00013151,2]
[424411184,1780851041000,-500.0,0.00013151,2]
[424411186,1780851041000,-396.94383744,0.00013151,2]
[424411188,1780851041000,-1035.0,0.00013151,2]
[424411191,1780851041000,-1035.0,0.00013151,2]
[424411208,1780851041000,-107125.55237673,0.00013433,2]
[424411189,1780851041000,-1035.0,0.00013151,2]
[424411197,1780851041000,-1053.0953843,0.00013151,2]
[424411193,1780851041000,-1035.0,0.00013151,2]
[424411201,1780851041000,-5947.74371621,0.000133,2]
[424411195,1780851041000,-1035.0,0.00013151,2]
[424411200,1780851041000,-350.0,0.00013216,3]
[424411204,1780851041000,-179.327073,0.00013424,2]
[424411199,1780851041000,-212.767361,0.00013203,2]
[424411203,1780851041000,-350.0,0.00013322,2]
[424411202,1780851041000,-559.83489288,0.000133,2]
[424411206,1780851041000,-282.027276,0.00013426,2]
[424411207,1780851041000,-1660.79961553,0.00013433,2]
[424411209,1780851041000,-448.92,0.00013465,2]
[424411216,1780851041000,-434.17,0.00013608,2]
[424411198,1780851041000,-415.604649,0.00013203,2]
[424411238,1780851041000,-500.0,0.00013698,2]
[424411305,1780851041000,-151.0,0.00013698,2]
[424411245,1780851041000,-410.70452855,0.00013698,2]
[424411272,1780851041000,-500.0,0.00013698,2]
[424411278,1780851041000,-500.0,0.00013698,2]
[424411281,1780851041000,-500.0,0.00013698,2]
[424411291,1780851041000,-500.0,0.00013698,2]
[424411280,1780851041000,-500.0,0.00013698,2]
[424411283,1780851041000,-742.23,0.00013698,2]
[424411290,1780851041000,-742.23,0.00013698,2]
[424411282,1780851041000,-502.46150506,0.00013698,2]
[424411289,1780851041000,-500.0,0.00013698,2]
[424411292,1780851041000,-742.23,0.00013698,2]
[424411284,1780851041000,-500.0,0.00013698,2]
[424411286,1780851041000,-742.23,0.00013698,2]
[424411288,1780851041000,-742.23,0.00013698,2]
[424411268,1780851041000,-190.2,0.00013698,2]
[424411287,1780851041000,-500.0,0.00013698,2]
[424411293,1780851041000,-742.23,0.00013698,2]
[424411296,1780851041000,-500.0,0.00013698,2]
[424411294,1780851041000,-500.0,0.00013698,2]
[424411304,1780851041000,-742.23,0.00013698,2]
[424411297,1780851041000,-742.23,0.00013698,2]
[424411298,1780851041000,-500.0,0.00013698,2]
[424411301,1780851041000,-500.0,0.00013698,2]
[424411300,1780851041000,-742.23,0.00013698,2]
[424411302,1780851041000,-515.126,0.00013698,2]
[424411303,1780851041000,-742.23,0.00013698,2]
[424411299,1780851041000,-742.23,0.00013698,2]
[424411306,1780851041000,-151.0,0.00013698,2]
[424411243,1780851041000,-500.0,0.00013698,2]
[424411295,1780851041000,-742.23,0.00013698,2]
[424411279,1780851041000,-500.0,0.00013698,2]
[424411285,1780851041000,-742.23,0.00013698,2]
[424411273,1780851041000,-500.0,0.00013698,2]
[424411274,1780851041000,-500.0,0.00013698,2]
[424411250,1780851041000,-500.0,0.00013698,2]
[424411253,1780851041000,-500.0,0.00013698,2]
[424411244,1780851041000,-500.0,0.00013698,2]
[424411246,1780851041000,-500.0,0.00013698,2]
[424411252,1780851041000,-500.0,0.00013698,2]
[424411247,1780851041000,-500.0,0.00013698,2]
[424411251,1780851041000,-500.0,0.00013698,2]
[424411248,1780851041000,-500.0,0.00013698,2]
[424411254,1780851041000,-396.87484801,0.00013698,2]
[424411256,1780851041000,-500.0,0.00013698,2]
[424411266,1780851041000,-500.0,0.00013698,2]
[424411255,1780851041000,-500.0,0.00013698,2]
[424411260,1780851041000,-500.0,0.00013698,2]
[424411258,1780851041000,-500.0,0.00013698,2]
[424411249,1780851041000,-606.24933806,0.00013698,2]
[424411269,1780851041000,-500.0,0.00013698,2]
[424411275,1780851041000,-500.0,0.00013698,2]
[424411270,1780851041000,-500.0,0.00013698,2]
[424411271,1780851041000,-500.0,0.00013698,2]
[424411265,1780851041000,-500.0,0.00013698,2]
[424411277,1780851041000,-500.0,0.00013698,2]
[424411267,1780851041000,-500.0,0.00013698,2]
[424411276,1780851041000,-525.11763864,0.00013698,2]
[424411262,1780851041000,-500.0,0.00013698,2]
[424411264,1780851041000,-500.0,0.00013698,2]
[424411259,1780851041000,-500.0,0.00013698,2]
[424411257,1780851041000,-500.0,0.00013698,2]
[424411261,1780851041000,-500.0,0.00013698,2]
[424411263,1780851041000,-567.34991975,0.00013698,2]
[424411351,1780851042000,-500.0,0.00013698,2]
[424411350,1780851042000,-500.0,0.00013698,2]
[424411348,1780851042000,-500.0,0.00013698,2]
[424411345,1780851042000,-457.12873569,0.00013698,2]
[424411347,1780851042000,-500.0,0.00013698,2]
[424411341,1780851042000,-494.93120924,0.00013698,2]
[424411343,1780851042000,-500.0,0.00013698,2]
[424411340,1780851042000,-500.0,0.00013698,2]
[424411337,1780851042000,-309.2506608,0.00013698,2]
[424411335,1780851042000,-500.0,0.00013698,2]
[424411338,1780851042000,-500.0,0.00013698,2]
[424411352,1780851042000,-500.0,0.00013698,2]
[424411346,1780851042000,-500.0,0.00013698,2]
[424411344,1780851042000,-500.0,0.00013698,2]
[424411357,1780851042000,-500.0,0.00013698,2]
[424411353,1780851042000,-500.0,0.00013698,2]
[424411355,1780851042000,-500.0,0.00013698,2]
[424411354,1780851042000,-500.0,0.00013698,2]
[424411356,1780851042000,-500.0,0.00013698,2]
[424411360,1780851042000,-500.0,0.00013698,2]
[424411358,1780851042000,-500.0,0.00013698,2]
[424411361,1780851042000,-500.0,0.00013698,2]
[424411359,1780851042000,-500.0,0.00013698,2]
[424411365,1780851042000,-500.0,0.00013698,2]
[424411367,1780851042000,-500.0,0.00013698,2]
[424411368,1780851042000,-500.0,0.00013698,2]
[424411364,1780851042000,-500.0,0.00013698,2]
[424411363,1780851042000,-500.0,0.00013698,2]
[424411349,1780851042000,-500.0,0.00013698,2]
[424411336,1780851042000,-500.0,0.00013698,2]
[424411362,1780851042000,-500.0,0.00013698,2]
[424411339,1780851042000,-500.0,0.00013698,2]
[424411307,1780851042000,-500.0,0.00013698,2]
[424411317,1780851042000,-500.0,0.00013698,2]
[424411318,1780851042000,-500.0,0.00013698,2]
[424411311,1780851042000,-500.0,0.00013698,2]
[424411309,1780851042000,-500.0,0.00013698,2]
[424411314,1780851042000,-500.0,0.00013698,2]
[424411312,1780851042000,-500.0,0.00013698,2]
[424411310,1780851042000,-500.0,0.00013698,2]
[424411308,1780851042000,-500.0,0.00013698,2]
[424411313,1780851042000,-500.0,0.00013698,2]
[424411316,1780851042000,-500.0,0.00013698,2]
[424411315,1780851042000,-500.0,0.00013698,2]
[424411319,1780851042000,-521.36,0.00013698,2]
[424411333,1780851042000,-500.0,0.00013698,2]
[424411321,1780851042000,-500.0,0.00013698,2]
[424411322,1780851042000,-500.0,0.00013698,2]
[424411320,1780851042000,-322.28290153,0.00013698,2]
[424411329,1780851042000,-500.0,0.00013698,2]
[424411324,1780851042000,-500.0,0.00013698,2]
[424411326,1780851042000,-500.0,0.00013698,2]
[424411327,1780851042000,-500.0,0.00013698,2]
[424411325,1780851042000,-500.0,0.00013698,2]
[424411328,1780851042000,-500.0,0.00013698,2]
[424411330,1780851042000,-500.0,0.00013698,2]
[424411332,1780851042000,-231.17,0.00013698,2]
[424411342,1780851042000,-500.0,0.00013698,2]
[424411331,1780851042000,-500.0,0.00013698,2]
[424411334,1780851042000,-500.0,0.00013698,2]
[424411323,1780851042000,-500.0,0.00013698,2]
[424411366,1780851042000,-500.0,0.00013698,2]
[424411402,1780851042000,-2174.61,0.00013699,2]
[424411374,1780851042000,-692.99,0.00013698,2]
[424411405,1780851042000,-151.0,0.00013699,2]
[424411406,1780851042000,-152.350402,0.00013699,2]
[424411427,1780851042000,-500.0,0.00013699,2]
[424411403,1780851042000,-1096.31,0.00013699,2]
[424411409,1780851042000,-2500.0,0.00013699,2]
[424411420,1780851042000,-500.0,0.00013699,2]
[424411419,1780851042000,-500.0,0.00013699,2]
[424411414,1780851042000,-500.0,0.00013699,2]
[424411410,1780851042000,-151.0,0.00013699,2]
[424411411,1780851042000,-500.0,0.00013699,2]
[424411417,1780851042000,-500.0,0.00013699,2]
[424411408,1780851042000,-166.66,0.00013699,2]
[424411416,1780851042000,-347.33311388,0.00013699,2]
[424411404,1780851042000,-151.0,0.00013699,2]
[424411413,1780851042000,-500.0,0.00013699,2]
[424411418,1780851042000,-500.0,0.00013699,2]
[424411415,1780851042000,-500.0,0.00013699,2]
[424411421,1780851042000,-500.0,0.00013699,2]
[424411423,1780851042000,-500.0,0.00013699,2]
[424411424,1780851042000,-500.0,0.00013699,2]
[424411425,1780851042000,-500.0,0.00013699,2]
[424411430,1780851042000,-500.0,0.00013699,2]
[424411431,1780851042000,-500.0,0.00013699,2]
[424411429,1780851042000,-500.0,0.00013699,2]
[424411428,1780851042000,-500.0,0.00013699,2]
[424411422,1780851042000,-500.0,0.00013699,2]
[424411426,1780851042000,-500.0,0.00013699,2]
[424411432,1780851042000,-500.0,0.00013699,2]
[424411412,1780851042000,-500.0,0.00013699,2]
[424411400,1780851042000,-613.76538141,0.00013698,2]
[424411369,1780851042000,-500.0,0.00013698,2]
[424411399,1780851042000,-500.0,0.00013698,2]
[424411380,1780851042000,-692.99,0.00013698,2]
[424411375,1780851042000,-692.99,0.00013698,2]
[424411372,1780851042000,-692.99,0.00013698,2]
[424411371,1780851042000,-692.99,0.00013698,2]
[424411373,1780851042000,-692.99,0.00013698,2]
[424411377,1780851042000,-692.99,0.00013698,2]
[424411382,1780851042000,-692.99,0.00013698,2]
[424411381,1780851042000,-692.99,0.00013698,2]
[424411379,1780851042000,-692.99,0.00013698,2]
[424411370,1780851042000,-217.89304475,0.00013698,2]
[424411378,1780851042000,-692.99,0.00013698,2]
[424411376,1780851042000,-692.99,0.00013698,2]
[424411384,1780851042000,-692.99,0.00013698,2]
[424411385,1780851042000,-692.99,0.00013698,2]
[424411401,1780851042000,-150.99,0.00013699,2]
[424411386,1780851042000,-692.99,0.00013698,2]
[424411396,1780851042000,-500.0,0.00013698,2]
[424411398,1780851042000,-500.0,0.00013698,2]
[424411407,1780851042000,-200.0,0.00013699,2]
[424411397,1780851042000,-500.0,0.00013698,2]
[424411383,1780851042000,-692.99,0.00013698,2]
[424411393,1780851042000,-500.0,0.00013698,2]
[424411391,1780851042000,-500.0,0.00013698,2]
[424411388,1780851042000,-237.69358717,0.00013698,2]
[424411389,1780851042000,-193.0,0.00013698,2]
[424411390,1780851042000,-193.0,0.00013698,2]
[424411387,1780851042000,-500.0,0.00013698,2]
[424411394,1780851042000,-500.0,0.00013698,2]
[424411395,1780851042000,-500.0,0.00013698,2]
[424411392,1780851042000,-500.0,0.00013698,2]
[424411484,1780851043000,-10000.0,0.00014424,2]
[424411481,1780851043000,-285.11800968,0.00014334,2]
[424411478,1780851043000,-150.0,0.00014237,2]
[424411476,1780851043000,-107125.55237673,0.00014167,2]
[424411479,1780851043000,-166.66,0.00014247,2]
[424411468,1780851043000,-150.0,0.00014,2]
[424411470,1780851043000,-250.0,0.00014,2]
[424411467,1780851043000,-14270.34142765,0.0001399,2]
[424411466,1780851043000,-742.23,0.00013989,2]
[424411465,1780851043000,-166.66,0.00013973,2]
[424411469,1780851043000,-2318.45740987,0.00014,2]
[424411480,1780851043000,-177.33116853,0.000143,2]
[424411474,1780851043000,-285.11800968,0.00014145,2]
[424411483,1780851043000,-166.66,0.00014384,2]
[424411503,1780851043000,-1660.79961553,0.000149,2]
[424411486,1780851043000,-285.11800968,0.00014522,2]
[424411487,1780851043000,-1660.79961553,0.00014533,2]
[424411488,1780851043000,-500.0,0.00014543,2]
[424411490,1780851043000,-692.99,0.00014561,2]
[424411492,1780851043000,-150.0,0.00014612,2]
[424411489,1780851043000,-8813.77996503,0.00014552,2]
[424411500,1780851043000,-1070.37471907,0.00014899,5]
[424411491,1780851043000,-200.0,0.000146,5]
[424411501,1780851043000,-285.11800968,0.000149,2]
[424411493,1780851043000,-200.0,0.000147,5]
[424411499,1780851043000,-200.0,0.00014879,2]
[424411495,1780851043000,-200.0,0.000148,5]
[424411498,1780851043000,-150.0,0.00014858,2]
[424411461,1780851043000,-188.911204,0.00013864,2]
[424411475,1780851043000,-1660.79961553,0.00014166,2]
[424411496,1780851043000,-448.92,0.00014812,2]
[424411451,1780851043000,-1507.75,0.000137,2]
[424411464,1780851043000,-285.11800968,0.00013956,2]
[424411434,1780851043000,-500.0,0.00013699,2]
[424411433,1780851043000,-500.0,0.00013699,2]
[424411436,1780851043000,-500.0,0.00013699,2]
[424411446,1780851043000,-500.0,0.00013699,2]
[424411435,1780851043000,-500.0,0.00013699,2]
[424411438,1780851043000,-500.0,0.00013699,2]
[424411442,1780851043000,-500.0,0.00013699,2]
[424411441,1780851043000,-500.0,0.00013699,2]
[424411439,1780851043000,-500.0,0.00013699,2]
[424411444,1780851043000,-203.62103583,0.00013699,2]
[424411437,1780851043000,-500.0,0.00013699,2]
[424411440,1780851043000,-500.0,0.00013699,2]
[424411445,1780851043000,-500.0,0.00013699,2]
[424411443,1780851043000,-500.0,0.00013699,2]
[424411463,1780851043000,-155.59,0.00013907,2]
[424411449,1780851043000,-500.0,0.00013699,2]
[424411448,1780851043000,-500.0,0.00013699,2]
[424411497,1780851043000,-404.0,0.0001485,2]
[424411447,1780851043000,-500.0,0.00013699,2]
[424411458,1780851043000,-500.0,0.00013829,2]
[424411455,1780851043000,-239.01853808,0.00013796,2]
[424411457,1780851043000,-107125.55237673,0.000138,2]
[424411460,1780851043000,-150.0,0.00013862,2]
[424411453,1780851043000,-500.0,0.00013751,11]
[424411452,1780851043000,-433.0,0.00013718,2]
[424411456,1780851043000,-1660.79961553,0.000138,2]
[424411454,1780851043000,-285.11800972,0.00013767,2]
[424411450,1780851043000,-500.0,0.00013699,2]
[424411462,1780851043000,-692.99,0.00013886,2]
[424411473,1780851043000,-500.0,0.00014136,2]
[424411459,1780851043000,-166.66,0.00013836,2]
[424411494,1780851043000,-285.11800968,0.00014711,2]
[424411472,1780851043000,-166.66,0.0001411,2]
[424411507,1780851043000,-559.83489288,0.000149,2]
[424411541,1780851043000,-742.23,0.00014999,2]
[424411545,1780851043000,-500.0,0.00014999,2]
[424411542,1780851043000,-742.46332657,0.00014999,2]
[424411544,1780851043000,-500.0,0.00014999,2]
[424411543,1780851043000,-1500.0,0.00014999,2]
[424411548,1780851043000,-500.0,0.00014999,2]
[424411558,1780851043000,-500.0,0.00014999,2]
[424411560,1780851043000,-500.0,0.00014999,2]
[424411559,1780851043000,-500.0,0.00014999,2]
[424411547,1780851043000,-500.0,0.00014999,2]
[424411550,1780851043000,-500.0,0.00014999,2]
[424411549,1780851043000,-500.0,0.00014999,2]
[424411553,1780851043000,-500.0,0.00014999,2]
[424411554,1780851043000,-500.0,0.00014999,2]
[424411551,1780851043000,-500.0,0.00014999,2]
[424411555,1780851043000,-500.0,0.00014999,2]
[424411557,1780851043000,-500.0,0.00014999,2]
[424411505,1780851043000,-200.0,0.000149,5]
[424411571,1780851043000,-500.0,0.00014999,2]
[424411570,1780851043000,-500.0,0.00014999,2]
[424411566,1780851043000,-500.0,0.00014999,2]
[424411564,1780851043000,-500.0,0.00014999,2]
[424411563,1780851043000,-500.0,0.00014999,2]
[424411546,1780851043000,-500.0,0.00014999,2]
[424411565,1780851043000,-500.0,0.00014999,2]
[424411568,1780851043000,-500.0,0.00014999,2]
[424411567,1780851043000,-500.0,0.00014999,2]
[424411562,1780851043000,-500.0,0.00014999,2]
[424411561,1780851043000,-500.0,0.00014999,2]
[424411556,1780851043000,-500.0,0.00014999,2]
[424411552,1780851043000,-500.0,0.00014999,2]
[424411569,1780851043000,-500.0,0.00014999,2]
[424411535,1780851043000,-742.23,0.00014999,2]
[424411477,1780851043000,-200.0,0.00014235,2]
[424411539,1780851043000,-742.23,0.00014999,2]
[424411528,1780851043000,-500.0,0.00014999,2]
[424411519,1780851043000,-500.0,0.00014999,13]
[424411515,1780851043000,-151.0,0.00014996,2]
[424411518,1780851043000,-500.0,0.00014999,12]
[424411517,1780851043000,-742.23,0.00014998,2]
[424411511,1780851043000,-500.0,0.00014988,2]
[424411523,1780851043000,-500.0,0.00014999,17]
[424411506,1780851043000,-5947.74371621,0.000149,2]
[424411514,1780851043000,-833.99917671,0.0001499,2]
[424411510,1780851043000,-150.0,0.00014986,2]
[424411513,1780851043000,-120967.63391002,0.00014989,2]
[424411509,1780851043000,-736.0,0.00014983,2]
[424411540,1780851043000,-742.23,0.00014999,2]
[424411508,1780851043000,-257.0,0.00014971,2]
[424411512,1780851043000,-692.99,0.00014988,2]
[424411526,1780851043000,-500.0,0.00014999,2]
[424411516,1780851043000,-151.0,0.00014997,2]
[424411527,1780851043000,-500.0,0.00014999,2]
[424411534,1780851043000,-742.23,0.00014999,2]
[424411536,1780851043000,-742.23,0.00014999,2]
[424411538,1780851043000,-742.23,0.00014999,2]
[424411529,1780851043000,-500.0,0.00014999,2]
[424411525,1780851043000,-500.0,0.00014999,19]
[424411537,1780851043000,-742.23,0.00014999,2]
[424411524,1780851043000,-500.0,0.00014999,18]
[424411522,1780851043000,-500.0,0.00014999,16]
[424411533,1780851043000,-500.0,0.00014999,2]
[424411521,1780851043000,-500.0,0.00014999,15]
[424411531,1780851043000,-500.0,0.00014999,2]
[424411520,1780851043000,-500.0,0.00014999,14]
[424411530,1780851043000,-500.0,0.00014999,2]
[424411532,1780851043000,-500.0,0.00014999,2]
[424411595,1780851044000,-500.0,0.00014999,2]
[424411590,1780851044000,-500.0,0.00014999,2]
[424411607,1780851044000,-500.0,0.00014999,2]
[424411601,1780851044000,-500.0,0.00014999,2]
[424411598,1780851044000,-500.0,0.00014999,2]
[424411597,1780851044000,-500.0,0.00014999,2]
[424411596,1780851044000,-500.0,0.00014999,2]
[424411592,1780851044000,-500.0,0.00014999,2]
[424411606,1780851044000,-500.0,0.00014999,2]
[424411603,1780851044000,-500.0,0.00014999,2]
[424411613,1780851044000,-500.0,0.00014999,2]
[424411602,1780851044000,-500.0,0.00014999,2]
[424411604,1780851044000,-500.0,0.00014999,2]
[424411605,1780851044000,-500.0,0.00014999,2]
[424411612,1780851044000,-500.0,0.00014999,2]
[424411611,1780851044000,-500.0,0.00014999,2]
[424411594,1780851044000,-500.0,0.00014999,2]
[424411599,1780851044000,-500.0,0.00014999,2]
[424411600,1780851044000,-500.0,0.00014999,2]
[424411575,1780851044000,-500.0,0.00014999,2]
[424411591,1780851044000,-500.0,0.00014999,2]
[424411573,1780851044000,-500.0,0.00014999,2]
[424411572,1780851044000,-500.0,0.00014999,2]
[424411574,1780851044000,-500.0,0.00014999,2]
[424411576,1780851044000,-500.0,0.00014999,2]
[424411577,1780851044000,-500.0,0.00014999,2]
[424411609,1780851044000,-500.0,0.00014999,2]
[424411578,1780851044000,-500.0,0.00014999,2]
[424411586,1780851044000,-500.0,0.00014999,2]
[424411589,1780851044000,-500.0,0.00014999,2]
[424411579,1780851044000,-500.0,0.00014999,2]
[424411584,1780851044000,-500.0,0.00014999,2]
[424411580,1780851044000,-500.0,0.00014999,2]
[424411583,1780851044000,-500.0,0.00014999,2]
[424411585,1780851044000,-500.0,0.00014999,2]
[424411581,1780851044000,-500.0,0.00014999,2]
[424411582,1780851044000,-500.0,0.00014999,2]
[424411588,1780851044000,-500.0,0.00014999,2]
[424411593,1780851044000,-500.0,0.00014999,2]
[424411587,1780851044000,-500.0,0.00014999,2]
[424411608,1780851044000,-500.0,0.00014999,2]
[424411620,1780851044000,-500.0,0.00014999,2]
[424411615,1780851044000,-500.0,0.00014999,2]
[424411635,1780851044000,-300.0,0.00014999,2]
[424411638,1780851044000,-185.66834356,0.00015,2]
[424411643,1780851044000,-776.30000002,0.00015,2]
[424411641,1780851044000,-384.79,0.00015,2]
[424411640,1780851044000,-150.0,0.00015,2]
[424411610,1780851044000,-500.0,0.00014999,2]
[424411644,1780851044000,-351.736,0.00015,2]
[424411645,1780851044000,-160.0,0.00012284,2]
[424411647,1780851044000,-1408.76492655,0.00014533,2]
[424411646,1780851044000,-2840.0,0.00014533,2]
[424411648,1780851044000,-2441.73391276,0.00014533,2]
[424411649,1780851044000,-315.30350385,0.00014533,2]
[424411653,1780851044000,-92397.98701585,0.00014533,2]
[424411651,1780851044000,-6602.47861446,0.00014533,2]
[424411650,1780851044000,-481.0271002,0.00014533,2]
[424411654,1780851044000,-7172.79035727,0.00015,2]
[424411652,1780851044000,-638.25730306,0.00014533,2]
[424411634,1780851044000,-666.0,0.00014999,2]
[424411636,1780851044000,-1842258.21646356,0.00015,2]
[424411639,1780851044000,-150.0,0.00015,2]
[424411632,1780851044000,-666.0,0.00014999,2]
[424411637,1780851044000,-351.79652105,0.00015,2]
[424411616,1780851044000,-500.0,0.00014999,2]
[424411625,1780851044000,-692.99,0.00014999,2]
[424411617,1780851044000,-500.0,0.00014999,2]
[424411626,1780851044000,-692.99,0.00014999,2]
[424411618,1780851044000,-500.0,0.00014999,2]
[424411619,1780851044000,-500.0,0.00014999,2]
[424411622,1780851044000,-500.0,0.00014999,2]
[424411614,1780851044000,-500.0,0.00014999,2]
[424411621,1780851044000,-500.0,0.00014999,2]
[424411623,1780851044000,-500.0,0.00014999,2]
[424411629,1780851044000,-693.05,0.00014999,2]
[424411633,1780851044000,-300.0,0.00014999,2]
[424411631,1780851044000,-300.0,0.00014999,2]
[424411642,1780851044000,-13439128.95956911,0.00015,2]
[424411630,1780851044000,-300.0,0.00014999,2]
[424411628,1780851044000,-692.99,0.00014999,2]
[424411627,1780851044000,-692.99,0.00014999,2]
[424411624,1780851044000,-500.0,0.00014999,2]
[424411657,1780851045000,-233.16606169,0.00015,2]
[424411655,1780851045000,-215.83393831,0.00012872,2]
[424411658,1780851045000,-914.17748947,0.00015,2]
[424411659,1780851045000,-776.84,0.00015,2]
[424411666,1780851045000,-725.52398608,0.00015,2]
[424411656,1780851045000,-151.0,0.00013151,2]
[424411668,1780851046000,-25823.08794789,0.000149,2]
[424411669,1780851046000,-15499.99999987,0.000149,2]
[424411760,1780851051000,500.0,0.00030137,120]
[424411761,1780851065000,500.0,0.00030137,120]
[424411762,1780851135000,500.01,0.00030137,120]
[424411763,1780851161000,500.0,0.00030137,120]
[424411764,1780851167000,500.0,0.00030137,120]
[424411765,1780851175000,500.0,0.00030137,120]
[424411766,1780851186000,500.0,0.00030137,120]
[424411767,1780851195000,500.0,0.00030137,120]
[424411768,1780851200000,500.0,0.00030137,120]
[424411769,1780851217000,500.0,0.00030137,120]
[424411770,1780851221000,500.0,0.00030137,120]
[424411771,1780851231000,499.99795968,0.00030137,120]
[424411772,1780851766000,300.0,0.000116,30]
[424411773,1780851849000,-150.0,0.00011535,2]
[424411774,1780851985000,2824.48149575,0.00030137,120]
[424411778,1780852079000,300.0,0.00011535,30]
[424411788,1780852231000,-788.28912268,0.000116,2]
[424411789,1780852231000,-1211.71087732,0.000116,2]
[424411791,1780852231000,-215.83393831,0.00011669,2]
[424411790,1780852231000,-160.0,0.00011669,2]
[424411799,1780852231000,-443.31,0.00013448,2]
[424411795,1780852231000,-250.0,0.00012689,2]
[424411796,1780852231000,-455.9,0.00013216,2]
[424411787,1780852231000,-1211.71087732,0.000115,2]
[424411792,1780852231000,-201.77862395,0.00012329,2]
[424411797,1780852231000,-150.0,0.00013227,2]
[424411793,1780852231000,-250.0,0.0001265,2]
[424411794,1780852231000,-250.0,0.0001265,2]
[424411800,1780852231000,-150.51,0.00013468,2]
[424411801,1780852231000,-163.66,0.00013502,2]
[424411798,1780852231000,-698.33,0.00013414,2]
[424411802,1780852231000,-662.64,0.00013608,2]
[424411824,1780852232000,-500.0,0.00013698,2]
[424411826,1780852232000,-500.0,0.00013698,2]
[424411827,1780852232000,-500.0,0.00013698,2]
[424411825,1780852232000,-500.0,0.00013698,2]
[424411828,1780852232000,-448.29587131,0.00013698,2]
[424411829,1780852232000,-51.70412869,0.00013698,2]
[424411831,1780852232000,-126.7118899,0.00013698,2]
[424411833,1780852232000,-401.58285355,0.00013698,2]
[424411839,1780852232000,-575.17,0.00013698,2]
[424411834,1780852232000,-98.41714645,0.00013698,2]
[424411841,1780852232000,-307.72041512,0.00013698,2]
[424411836,1780852232000,-575.17,0.00013698,2]
[424411835,1780852232000,-176.04,0.00013698,2]
[424411837,1780852232000,-575.17,0.00013698,2]